lending/lending_fUSD_20260124
["ID","MTS","AMOUNT","RATE_DAILY","PERIOD"]
[403263915,1769282081090,-135.97815237,0.0001014,2]
[403263916,1769282081110,-39.27335885,0.0001014,2]
[403263917,1769282083636,-197.48444115,0.0001014,2]
[403263918,1769282083661,-50.37220185,0.0001014,2]
[403263919,1769282085585,-145.77639815,0.0001014,2]
[403263920,1769282085609,-16.53443654,0.00010237,2]
[403263921,1769282089397,-152.90282489,0.00010237,2]
[403263922,1769282092792,-242.71801423,0.00010237,2]
[403263923,1769282094322,-208.42425293,0.00010237,2]
[403263938,1769282250483,-227.80415376,0.0001014,2]
[403263944,1769282265704,227.804153,0.00010089,2]
[403263950,1769282340516,-179.06149038,0.0001014,2]
[403263951,1769282342457,4950.408485,0.00010089,2]
[403263952,1769282342560,-93.13435586,0.0001014,2]
[403263953,1769282342585,-157.69793121,0.00010188,2]
[403263958,1769282344807,-92.30206879,0.00010188,2]
[403263959,1769282344829,-119.05385903,0.00010219,2]
[403263960,1769282347017,-130.94614097,0.00010219,2]
[403263961,1769282347040,-24.87992656,0.00010233,2]
[403264032,1769282430484,-170.38790685,0.00010134,2]
[403264033,1769282430506,-47.30457382,0.00010134,2]
[403264034,1769282432130,-185.69542618,0.00010134,2]
[403264035,1769282432154,-65.32109997,0.00010233,2]
[403264036,1769282434897,530.593341,0.00010083,2]
[403264041,1769282460706,-165.51566,0.00010233,2]
[403264044,1769282462412,-165.51566,0.00010232,2]
[403264045,1769282463924,-134.48434,0.00010232,2]
[403264046,1769282463949,-91.18560004,0.00010233,2]
[403264047,1769282465909,-294.0920583,0.00010233,2]
[403264048,1769282468015,-226.00565513,0.00010233,2]
[403264049,1769282468040,-94.14661557,0.00010233,2]
[403264050,1769282471016,-197.65812545,0.00010131,2]
[403264051,1769282472302,-5.34187455,0.00010131,2]
[403264052,1769282472324,-233.65812545,0.00010233,2]
[403264053,1769282473813,-330.48434,0.00010233,2]
[403264054,1769282475770,-159.47121487,0.00010233,2]
[403264119,1769282506232,-165.51566,0.00010233,2]
[403264120,1769282507509,-216.72404411,0.00010233,2]
[403264121,1769282507531,-105.36481018,0.00010233,2]
[403264122,1769282509984,-183.56040418,0.00010233,2]
[403264123,1769282511861,-11.07478564,0.00010233,2]
[403264124,1769282511885,-300.0,0.00010233,2]
[403264125,1769282511908,-49.92911233,0.00010234,2]
[403264126,1769282514105,-101.07088767,0.00010234,2]
[403264127,1769282514129,-70.85304815,0.00010234,2]
[403264128,1769282516552,-80.14695185,0.00010234,2]
[403264129,1769282516576,-130.64523035,0.00010234,2]
[403264130,1769282518324,-20.35476965,0.00010234,2]
[403264131,1769282518347,-151.0,0.00010234,2]
[403264132,1769282518368,-6.22337686,0.00010234,2]
[403264133,1769282521130,-144.77662314,0.00010234,2]
[403264134,1769282521152,-110.9778847,0.00010234,2]
[403264136,1769282523329,-40.0221153,0.00010234,2]
[403264137,1769282523352,-151.0,0.00010234,2]
[403264138,1769282523373,-95.31028658,0.00010234,2]
[403264139,1769282526306,-55.68971342,0.00010234,2]
[403264140,1769282526330,-106.31620184,0.00010234,2]
[403264141,1769282528563,-44.68379816,0.00010234,2]
[403264142,1769282528586,-151.0,0.00010234,2]
[403264143,1769282528608,-151.0,0.00010234,2]
[403264144,1769282528630,-2.49514038,0.00010234,2]
[403264145,1769282532330,-224.63899196,0.00010234,2]
[403264146,1769282536221,-272.86586766,0.00010234,2]
[403264147,1769282536243,-22.75020139,0.00010236,2]
[403264148,1769282538531,-153.61384336,0.00010236,2]
[403264149,1769282540999,-153.61384336,0.00010234,2]
[403264162,1769282561215,-57.17833884,0.00010234,2]
[403264163,1769282561243,-433.33265435,0.00010234,2]
[403264164,1769282561270,-266.71514727,0.00010234,2]
[403264165,1769282561299,-73.63595525,0.00010236,2]
[403264166,1769282561327,-150.0,0.00010238,2]
[403264167,1769282561358,-500.0,0.00010239,2]
[403264168,1769282561388,-514.53085768,0.00010239,2]
[403264169,1769282561417,-500.0,0.00010239,2]
[403264170,1769282561446,-500.0,0.00010239,2]
[403264171,1769282561474,-500.0,0.00010239,2]
[403264172,1769282561502,-500.0,0.00010239,2]
[403264173,1769282561531,-500.0,0.00010239,2]
[403264174,1769282561559,-500.0,0.00010239,2]
[403264175,1769282562104,-164.56822479,0.00010239,2]
[403264176,1769282562135,-500.0,0.00010239,2]
[403264177,1769282562165,-613.29064091,0.00010239,2]
[403264178,1769282562194,-510.97293758,0.00010239,2]
[403264179,1769282562224,-500.0,0.00010239,2]
[403264180,1769282562252,-297.33831714,0.00010239,2]
[403264181,1769282563283,-20.1970308,0.0001024,2]
[403264182,1769282563362,-4827.66975916,0.0001024,2]
[403264183,1769282563472,-10000.01,0.0001024,2]
[403264184,1769282563551,-10000.01,0.0001024,2]
[403264185,1769282563582,-10000.01,0.0001024,2]
[403264186,1769282563604,-10000.01,0.0001024,2]
[403264187,1769282563656,-326.17817803,0.0001024,2]
[403264188,1769282563671,-10000.01,0.0001024,2]
[403264189,1769282563685,-10000.01,0.0001024,2]
[403264190,1769282564187,-10000.01,0.0001024,2]
[403264191,1769282564268,-10000.01,0.0001024,2]
[403264192,1769282566955,-332.29151069,0.0001024,2]
[403264193,1769282569521,-192.55584767,0.0001024,2]
[403264196,1769282572942,-337.25651874,0.0001024,2]
[403264197,1769282574866,-282.28360718,0.0001024,2]
[403264201,1769282580490,-180.14659574,0.0001024,2]
[403264207,1769282625509,-151.29273343,0.00010239,2]
[403264208,1769282627714,-148.70726657,0.00010239,2]
[403264209,1769282627740,-13.83662367,0.0001024,2]
[403264210,1769282631144,-185.90449884,0.0001024,2]
[403264211,1769282632703,-190.59259671,0.0001024,2]
[403264212,1769282635296,-376.42432675,0.0001024,2]
[403264213,1769282637257,-200.0,0.0001024,2]
[403264214,1769282638631,-183.1121574,0.0001024,2]
[403264215,1769282641653,-202.72394855,0.00010239,2]
[403264217,1769282643176,-97.27605145,0.00010239,2]
[403264218,1769282643202,-150.0,0.00010239,2]
[403264219,1769282643540,-52.72394855,0.0001024,2]
[403264220,1769282647756,-173.57567325,0.0001024,2]
[403264231,1769282715185,380.51753688,0.000121,30]
[403264254,1769282760918,5809.17516499,8e-05,2]
[403264258,1769282882292,-244.50718168,0.0001014,2]
[403264259,1769282885177,-440.46022887,0.0001014,2]
[403264260,1769282886711,-54.17228945,0.0001014,2]
[403264261,1769282886734,-159.20519787,0.0001014,2]
[403264262,1769282886757,-2.62976963,0.00010233,2]
[403264263,1769282888702,-265.23041101,0.00010233,2]
[403264264,1769282890687,-32.13981936,0.00010233,2]
[403264265,1769282890709,-165.93834011,0.00010234,2]
[403264266,1769282892806,-260.46418727,0.00010234,2]
[403264267,1769282895203,-73.33859513,0.00010234,2]
[403264268,1769282895229,-101.64881749,0.00010234,2]
[403264269,1769282897064,-49.35118251,0.00010234,2]
[403264270,1769282897087,-151.0,0.00010234,2]
[403264271,1769282897108,-17.02209191,0.00010234,2]
[403264272,1769282899037,-133.97790809,0.00010234,2]
[403264273,1769282899063,-106.4353892,0.00010234,2]
[403264274,1769282900942,-44.5646108,0.00010234,2]
[403264275,1769282900964,-112.08700005,0.00010234,2]
[403264279,1769282906231,-38.91299995,0.00010234,2]
[403264280,1769282906255,-151.0,0.00010234,2]
[403264281,1769282906279,-41.12700005,0.00010234,2]
[403264285,1769282908264,-109.87299995,0.00010234,2]
[403264286,1769282908299,-74.08216547,0.00010234,2]
[403264287,1769282909711,-76.91783453,0.00010234,2]
[403264288,1769282909733,-119.30356257,0.00010234,2]
[403264291,1769282911663,-31.69643743,0.00010234,2]
[403264292,1769282911684,-138.8638718,0.00010234,2]
[403264294,1769282925679,-133.47139727,0.00010234,2]
[403264295,1769282925703,-19.56919127,0.00010234,2]
[403264296,1769282926906,-216.85110539,0.00010234,2]
[403264297,1769282928289,-187.33301048,0.0001014,2]
[403264298,1769282930335,-277.90939824,0.0001014,2]
[403264300,1769282932453,-383.33077612,0.0001014,2]
[403264301,1769282937857,-220.85293412,0.0001014,2]
[403264302,1769282942323,-262.34404567,0.00010139,2]
[403264303,1769282944289,-37.65595433,0.00010139,2]
[403264304,1769282944315,-296.01635023,0.0001014,2]
[403264305,1769282946208,-280.27009577,0.0001014,2]
[403264307,1769282948619,-176.3635118,0.0001014,2]
[403264308,1769282951987,-152.97215145,0.0001014,2]
[403264309,1769282953520,-201.35302676,0.0001014,2]
[403264310,1769282955245,-237.47072118,0.0001014,2]
[403264311,1769282957427,-282.32205396,0.0001014,2]
[403264312,1769282960523,-322.87212497,0.0001014,2]
[403264313,1769282962061,-221.65826949,0.0001014,2]
[403264314,1769282964100,-217.67794604,0.0001014,2]
[403264315,1769282967588,-183.7866476,0.0001014,2]
[403264318,1769282969386,-151.69590403,0.0001014,2]
[403264319,1769282971804,-218.91069413,0.0001014,2]
[403264320,1769282974088,-151.89299511,0.0001013,2]
[403264321,1769282974301,-364.29993488,0.0001013,2]
[403264322,1769282976202,-245.61663754,0.0001013,2]
[403264367,1769283032214,-281.09274156,0.0001013,2]
[403264368,1769283032223,-233.0,0.0001013,2]
[403264369,1769283032233,-1586.81074562,0.00010134,2]
[403264370,1769283032241,-588.36629673,0.00010134,2]
[403264371,1769283032251,-300.0,0.00010139,2]
[403264372,1769283032260,-221.0,0.00010139,2]
[403264373,1769283032269,-300.0,0.00010139,2]
[403264374,1769283032278,-150.0,0.00010139,2]
[403264375,1769283032287,-1200.0,0.00010139,2]
[403264376,1769283032296,-92184.84298419,0.0001014,2]
[403264377,1769283032307,-782.76857672,0.0001014,2]
[403264386,1769283032428,-5886.4180569,0.0001014,2]
[403264388,1769283032440,-1422.63899574,0.0001014,2]
[403264389,1769283032451,-4201.65523545,0.0001014,2]
[403264390,1769283032514,-896.46793918,0.0001014,2]
[403264392,1769283032578,-459.25366329,0.0001014,2]
[403264393,1769283032590,-426.83436047,0.0001014,2]
[403264394,1769283032602,-12310.20938044,0.0001014,2]
[403264395,1769283032617,-1349.61288932,0.0001014,2]
[403264400,1769283038029,-8386.63060193,0.0001014,2]
[403264401,1769283038039,-263.57970334,0.00010234,2]
[403264402,1769283038047,-500.0,0.00010234,2]
[403264403,1769283038056,-500.0,0.00010234,2]
[403264404,1769283038065,-500.0,0.00010234,2]
[403264405,1769283038074,-500.0,0.00010234,2]
[403264406,1769283038083,-500.0,0.00010234,2]
[403264407,1769283038092,-200.0,0.00010234,2]
[403264408,1769283038101,-190.59259671,0.00010234,2]
[403264409,1769283038109,-200.0,0.00010234,2]
[403264410,1769283038118,-500.0,0.00010239,2]
[403264411,1769283038127,-508.51310836,0.00010239,2]
[403264412,1769283038136,-500.0,0.00010239,2]
[403264413,1769283038145,-500.0,0.00010239,2]
[403264414,1769283038153,-500.0,0.00010239,2]
[403264415,1769283038162,-500.0,0.00010239,2]
[403264416,1769283038171,-500.0,0.00010239,2]
[403264417,1769283038179,-500.0,0.00010239,2]
[403264418,1769283038188,-500.0,0.00010239,2]
[403264419,1769283038197,-404.57133588,0.00010239,2]
[403264420,1769283038206,-505.17359471,0.00010239,2]
[403264421,1769283038215,-335.8084331,0.0001024,2]
[403264422,1769283038224,-200.0,0.0001024,2]
[403264423,1769283038232,-1621.5555307,0.00011,2]
[403264424,1769283038241,-240.41329729,0.00011143,2]
[403264426,1769283038250,-150.0,0.00011143,2]
[403264427,1769283038259,-420.0,0.00011151,2]
[403264428,1769283038268,-218.40307843,0.00011153,2]
[403264448,1769283038640,-1188.515661,0.00011153,2]
[403264451,1769283038651,-273.08126057,0.00011153,2]
[403264453,1769283038660,-195.0,0.00011154,2]
[403264455,1769283038669,-166.95475167,0.00011154,2]
[403264474,1769283038839,-28.04524833,0.00011154,2]
[403264476,1769283038849,-250.0,0.00011154,2]
[403264478,1769283038859,-195.0,0.00011154,2]
[403264480,1769283038868,-250.0,0.00011154,2]
[403264482,1769283038878,-587.0,0.00012265,2]
[403264485,1769283038888,-1403.0,0.00012268,2]
[403264487,1769283038897,-171.45,0.0001234,2]
[403264489,1769283038907,-1265.0,0.00013008,2]
[403264490,1769283038916,-329.12341109,0.00013053,2]
[403264493,1769283038925,-290.0,0.00013058,2]
[403264495,1769283038934,-823.0,0.00013489,2]
[403264497,1769283038947,-186.58459906,0.00013589,2]
[403264655,1769283040353,-25.41540094,0.00013589,2]
[403264656,1769283040362,-947.46459906,0.00013598,2]
[403264657,1769283040373,-110.62038718,0.00013598,2]
[403264658,1769283040383,-286.0957933,0.00013698,2]
[403264659,1769283040507,-213.9042067,0.00013698,2]
[403264661,1769283040516,-500.0,0.00013698,2]
[403264663,1769283040525,-351.48760268,0.00013698,2]
[403264665,1769283040534,-158.56715665,0.00013698,2]
[403264667,1769283040542,-179.44628109,0.00013698,2]
[403264669,1769283040551,-357.6810563,0.00013698,2]
[403264671,1769283040559,-500.0,0.00013698,2]
[403264673,1769283040568,-475.56711507,0.00013698,2]
[403264675,1769283040577,-500.0,0.00013698,2]
[403264677,1769283040585,-500.0,0.00013698,2]
[403264679,1769283040594,-500.0,0.00013698,2]
[403264681,1769283040602,-500.0,0.00013698,2]
[403264683,1769283040611,-500.0,0.00013699,2]
[403264685,1769283040620,-500.0,0.00013699,2]
[403264687,1769283040629,-500.0,0.00013699,2]
[403264689,1769283040637,-500.0,0.00013699,2]
[403264691,1769283040646,-602.2457052,0.00013699,2]
[403264693,1769283040655,-918.64355495,0.00013741,2]
[403264695,1769283040664,-5432.0,0.00013741,2]
[403264697,1769283040672,-988.0,0.00013741,2]
[403264699,1769283040681,-7273.71841602,0.00013741,2]
[403264701,1769283040690,-151.0,0.00013741,2]
[403264703,1769283040698,-151.0,0.00013741,2]
[403264705,1769283040707,-151.0,0.00013741,2]
[403264707,1769283040715,-151.0,0.00013741,2]
[403264709,1769283040724,-151.0,0.00013741,2]
[403264711,1769283040733,-151.0,0.00013741,2]
[403264713,1769283040743,-151.0,0.00013741,2]
[403264715,1769283040751,-151.0,0.00013741,2]
[403264717,1769283040760,-151.0,0.00013741,2]
[403264719,1769283040769,-151.0,0.00013741,2]
[403264721,1769283040777,-151.0,0.00013741,2]
[403264723,1769283040786,-1058.08498619,0.00014076,2]
[403264725,1769283040795,-294.0,0.00014114,2]
[403264727,1769283040803,-678.0,0.00014203,2]
[403264729,1769283040812,-315.0,0.0001444,2]
[403264731,1769283040821,-151.0,0.00014508,2]
[403264733,1769283040829,-1058.08498619,0.00014554,2]
[403264735,1769283040838,-1152.0,0.00014836,2]
[403264737,1769283040847,-152.0,0.00014972,3]
[403264739,1769283040855,-1058.08498619,0.00015032,2]
[403264741,1769283040864,-262.55520896,0.000153,2]
[403264743,1769283040873,-150.0,0.00015345,2]
[403264745,1769283040881,-1058.08498619,0.0001551,2]
[403264747,1769283040890,-500.0,0.00015555,2]
[403264749,1769283040899,-1600.0,0.00015567,2]
[403264751,1769283040908,-152.0,0.00015639,4]
[403264753,1769283040918,-243.06,0.00015654,2]
[403264755,1769283040926,-1477.11,0.00015869,2]
[403264757,1769283040935,-1058.08498619,0.00015988,2]
[403264759,1769283040947,-166.66,0.00016039,2]
[403264761,1769283040958,-159.598434,0.00016164,2]
[403264763,1769283040967,-152.0,0.00016306,5]
[403264765,1769283040976,-156.0,0.00016318,2]
[403264767,1769283040986,-500.0,0.00016356,2]
[403264769,1769283040995,-500.0,0.00016356,2]
[403264771,1769283041004,-166.66,0.00016377,2]
[403264773,1769283041013,-500.0,0.000164,2]
[403264775,1769283041023,-500.0,0.00016438,2]
[403264777,1769283041031,-500.0,0.00016438,2]
[403264779,1769283041040,-500.0,0.00016438,2]
[403264781,1769283041050,-500.0,0.00016438,2]
[403264783,1769283041058,-155.78099424,0.00016438,2]
[403264785,1769283041067,-1058.08498619,0.00016466,2]
[403264787,1769283041076,-5432.0,0.0001648,2]
[403264789,1769283041085,-243.06,0.00016524,2]
[403264791,1769283041093,-1000.0,0.00016712,2]
[403264793,1769283041102,-166.66,0.00016714,2]
[403264795,1769283041111,-500.0,0.00016787,2]
[403264797,1769283041120,-247.26659948,0.0001686,2]
[403264799,1769283041128,-500.0,0.0001686,2]
[403264801,1769283041137,-204.88166996,0.0001686,2]
[403264803,1769283041147,-8716.72716517,0.000169,2]
[403264805,1769283041155,-1058.08498619,0.00016944,2]
[403264807,1769283041164,-152.0,0.00016973,6]
[403264809,1769283041173,-1000.0,0.00016986,2]
[403264811,1769283041181,-540.31,0.00017028,2]
[403264813,1769283041190,-166.66,0.00017052,2]
[403264815,1769283041199,-150.0,0.00017178,2]
[403264817,1769283041208,-1000.0,0.0001726,2]
[403264819,1769283041216,-200.0,0.00017276,2]
[403264821,1769283041225,-168.0,0.00017331,2]
[403264823,1769283041234,-166.66,0.0001739,2]
[403264825,1769283041243,-243.06,0.00017394,2]
[403264826,1769283041252,-1000.0,0.00017408,2]
[403264828,1769283041261,-200.0,0.00017411,2]
[403264830,1769283041270,-1058.08498619,0.00017422,2]
[403264832,1769283041279,-200.0,0.00017446,2]
[403264835,1769283041288,-1189.38769854,0.000175,3]
[403264837,1769283041297,-6301.43742151,0.000175,2]
[403264839,1769283041306,-200.0,0.00017506,2]
[403264841,1769283041315,-1600.0,0.00017512,2]
[403264842,1769283041323,-168.0,0.00017517,2]
[403264844,1769283041332,-1000.0,0.00017534,2]
[403264846,1769283041341,-997.17336156,0.00017555,2]
[403264848,1769283041350,-152.0,0.00017639,7]
[403264850,1769283041358,-1351.02609671,0.0001764,2]
[403264852,1769283041367,-388.33,0.00017652,2]
[403264854,1769283041376,-1237.72,0.00017652,2]
[403264856,1769283041385,-1389.16,0.00017652,2]
[403264859,1769283041394,-936.78,0.00017652,2]
[403264860,1769283041403,-172.14,0.00017652,2]
[403264862,1769283041412,-3023.0,0.00017681,2]
[403264864,1769283041420,-3023.0,0.00017683,2]
[403264866,1769283041429,-168.0,0.00017691,2]
[403264868,1769283041438,-150.0,0.00017699,2]
[403264870,1769283041446,-152.56096639,0.00017699,2]
[403264872,1769283041455,-206.8526709,0.00017699,2]
[403264874,1769283041464,-150.0,0.00017699,2]
[403264876,1769283041473,-240.41022385,0.00017699,2]
[403264878,1769283041481,-150.0,0.00017699,2]
[403264880,1769283041490,-150.0,0.00017699,2]
[403264882,1769283041499,-150.0,0.00017699,2]
[403264884,1769283041508,-150.0,0.00017699,2]
[403264915,1769283041787,-152.18717547,0.00017699,2]
[403264918,1769283041807,-204.43309675,0.00017699,2]
[403264920,1769283041816,-500.0,0.00017699,2]
[403264922,1769283041825,-150.0,0.00017699,2]
[403264924,1769283041834,-150.0,0.00017699,2]
[403264926,1769283041843,-150.0,0.00017699,2]
[403264928,1769283041851,-150.0,0.00017699,2]
[403264930,1769283041860,-150.0,0.00017699,2]
[403264932,1769283041868,-150.0,0.00017699,2]
[403264934,1769283041877,-150.0,0.00017699,2]
[403264936,1769283041886,-150.0,0.00017699,2]
[403264937,1769283041895,-150.0,0.00017699,2]
[403264939,1769283041907,-150.0,0.00017699,2]
[403264941,1769283041916,-901.0,0.00017727,2]
[403264943,1769283041925,-166.66,0.00017727,2]
[403264945,1769283041934,-150.0,0.00017754,2]
[403264948,1769283041952,-150.0,0.00017754,2]
[403264949,1769283041965,-150.0,0.00017754,2]
[403264951,1769283041976,-150.0,0.00017754,2]
[403264953,1769283041986,-150.0,0.00017754,2]
[403264955,1769283042003,-500.0,0.00017754,2]
[403264957,1769283042022,-150.0,0.00017754,2]
[403264959,1769283042031,-200.0,0.00017754,2]
[403264961,1769283042039,-150.0,0.00017754,2]
[403264963,1769283042048,-200.0,0.00017754,2]
[403264965,1769283042057,-150.0,0.00017754,2]
[403264967,1769283042065,-150.0,0.00017754,2]
[403264969,1769283042074,-3523.642,0.00017797,2]
[403264971,1769283042083,-252.112,0.00017797,2]
[403264972,1769283042092,-9733.58116354,0.000178,2]
[403264981,1769283042165,-10796.77554443,0.000178,2]
[403264983,1769283042175,-1000.0,0.00017808,2]
[403264985,1769283042184,-150.0,0.00017809,2]
[403264987,1769283042192,-200.0,0.00017809,2]
[403264989,1769283042201,-150.0,0.00017809,2]
[403264991,1769283042210,-150.0,0.00017809,2]
[403264993,1769283042218,-150.0,0.00017809,2]
[403264995,1769283042227,-150.88816703,0.00017809,2]
[403264997,1769283042238,-150.0,0.00017809,2]
[403264999,1769283042246,-150.0,0.00017809,2]
[403265001,1769283042255,-200.0,0.00017809,2]
[403265004,1769283042266,-200.0,0.00017809,2]
[403265006,1769283042274,-1589.13436,0.0001782,2]
[403265008,1769283042283,-1589.13436,0.0001782,2]
[403265010,1769283042292,-168.0,0.00017847,2]
[403265011,1769283042302,-168.0,0.00017855,2]
[403265013,1769283042311,-2500.0,0.00017856,2]
[403265015,1769283042319,-200.0,0.00017856,2]
[403265017,1769283042328,-150.0,0.00017863,2]
[403265019,1769283042337,-150.0,0.00017863,2]
[403265021,1769283042346,-150.0,0.00017863,2]
[403265023,1769283042356,-150.0,0.00017863,2]
[403265025,1769283042365,-150.0,0.00017863,2]
[403265027,1769283042373,-150.0,0.00017863,2]
[403265029,1769283042382,-652.58460081,0.00017899,2]
[403265031,1769283042390,-333.53150462,0.00017899,2]
[403265033,1769283042400,-497.90038454,0.00017899,2]
[403265035,1769283042409,-497.90038448,0.00017899,2]
[403265037,1769283042417,-652.5846008,0.00017899,2]
[403265039,1769283042426,-497.90038448,0.00017899,2]
[403265041,1769283042436,-652.5846008,0.00017899,2]
[403265043,1769283042448,-497.90038448,0.00017899,2]
[403265045,1769283042465,-652.5846008,0.00017899,2]
[403265047,1769283042474,-497.90038448,0.00017899,2]
[403265049,1769283042483,-333.53150462,0.000179,2]
[403265051,1769283042491,-497.90038448,0.000179,2]
[403265053,1769283042500,-652.5846008,0.000179,2]
[403265055,1769283042509,-652.5846008,0.000179,2]
[403265057,1769283042517,-10000.0,0.000179,2]
[403265059,1769283042526,-275.04718251,0.000179,2]
[403265061,1769283042535,-1055.44697797,0.000179,2]
[403265063,1769283042543,-333.53150462,0.000179,2]
[403265065,1769283042552,-250.1703556,0.000179,2]
[403265067,1769283042561,-1058.08498619,0.000179,2]
[403265069,1769283042571,-168.0,0.00017909,2]
[403265071,1769283042581,-260.43006302,0.00017918,2]
[403265073,1769283042590,-150.0,0.00017918,2]
[403265075,1769283042598,-150.0,0.00017918,2]
[403265077,1769283042607,-150.0,0.00017918,2]
[403265079,1769283042616,-150.0,0.00017918,2]
[403265081,1769283042625,-250.0,0.00017918,2]
[403265083,1769283042633,-3424.0,0.00017956,2]
[403265085,1769283042642,-1500.0,0.00017956,2]
[403265087,1769283042651,-250.0,0.00017973,2]
[403265089,1769283042659,-250.0,0.00017973,2]
[403265091,1769283042668,-250.0,0.00017973,2]
[403265093,1769283042677,-250.0,0.00017973,2]
[403265095,1769283042685,-150.0,0.00017973,2]
[403265097,1769283042694,-150.0,0.00017973,2]
[403265099,1769283042703,-295.81859598,0.00017997,2]
[403265101,1769283042712,-515.67927175,0.00017997,2]
[403265103,1769283042721,-500.0,0.00017997,2]
[403265105,1769283042730,-500.0,0.00017997,2]
[403265107,1769283042738,-500.0,0.00017997,2]
[403265109,1769283042750,-150.0,0.00017997,2]
[403265112,1769283042759,-151.0,0.00017997,2]
[403265113,1769283042768,-500.0,0.00017997,2]
[403265115,1769283042778,-16689.9335676,0.00017998,2]
[403265117,1769283042787,-552816.2787794,0.00017998,2]
[403265119,1769283042796,-1071.11189023,0.00017999,5]
[403265121,1769283042805,-1008.959,0.00017999,2]
[403265123,1769283042813,-300.0,0.00017999,2]
[403265125,1769283042823,-300.0,0.00017999,2]
[403265127,1769283042832,-300.0,0.00017999,2]
[403265129,1769283042848,-300.0,0.00017999,2]
[403265132,1769283042857,-500.0,0.00017999,2]
[403265134,1769283042866,-500.0,0.00017999,2]
[403265135,1769283042875,-500.0,0.00017999,2]
[403265137,1769283042884,-609.90965872,0.00017999,2]
[403265139,1769283042893,-300.0,0.00017999,2]
[403265141,1769283042902,-300.0,0.00017999,2]
[403265143,1769283042911,-300.0,0.00017999,2]
[403265145,1769283042920,-13686.32468372,0.00017999,2]
[403265147,1769283042928,-300.0,0.00017999,2]
[403265149,1769283042937,-500.0,0.00017999,2]
[403265151,1769283042950,-500.0,0.00017999,2]
[403265153,1769283042959,-500.0,0.00017999,2]
[403265155,1769283042968,-500.0,0.00017999,2]
[403265157,1769283042977,-500.0,0.00017999,2]
[403265159,1769283042987,-500.0,0.00017999,2]
[403265161,1769283042996,-500.0,0.00017999,2]
[403265163,1769283043004,-500.0,0.00017999,2]
[403265165,1769283043014,-500.0,0.00017999,2]
[403265167,1769283043023,-500.0,0.00017999,2]
[403265169,1769283043031,-500.0,0.00017999,2]
[403265171,1769283043040,-500.0,0.00017999,2]
[403265173,1769283043049,-286.2852437,0.00017999,2]
[403265176,1769283043058,-150.0,0.00018,2]
[403265178,1769283043067,-150.0,0.00018,2]
[403265180,1769283043075,-1312.43,0.00018,2]
[403265182,1769283043084,-1312.43,0.00018,2]
[403265184,1769283043093,-1312.43,0.00018,2]
[403265186,1769283043103,-1312.43,0.00018,2]
[403265188,1769283043112,-1312.43,0.00018,2]
[403265190,1769283043121,-1930.58,0.00018,2]
[403265192,1769283043131,-3226581.00179703,0.00018,2]
[403265195,1769283043143,-629.67317731,0.00018,2]
[403265324,1769283044467,-1.7e-07,0.00018,2]
[403265383,1769283044980,-332.21175698,0.00018,2]
[403265422,1769283045317,-536.11602522,0.00018,2]
[403265620,1769283047138,-75160.00266166,0.00018,2]
[403265641,1769283047388,-1631640.87228054,0.00018,2]
[403265644,1769283047400,-9862.32773374,0.00018,2]
[403265859,1769283049330,-497.90038448,0.000179,2]
[403265861,1769283049339,-1827.3552018,0.00018,2]
[403265866,1769283049373,-2025.03293898,0.00018,2]
[403265873,1769283049425,-412145.23775148,0.00018,2]
[403265875,1769283049435,-1842.16678197,0.00018,2]
[403269089,1769283150801,257.310391,0.00010088,2]
[403269090,1769283215582,-300.0,0.00010139,2]
[403269092,1769283215876,-300.0,0.0001014,2]